bitfinex/quotes_ETHUSD_20260119
["timestamp","ask_amount","ask_price","bid_price","bid_amount"]
[1768786929656,0.507,3209.1,3208.2,12.27531544]
[1768786930364,3.62319,3209.1,3208.3,12.27531544]
[1768786932049,20.99680713,3209.7,3208.3,12.27531544]
[1768786932397,3.11575011,3209.5,3208.5,12.27531544]
[1768786932548,18.28163742,3209.5,3208.6,12.77931544]
[1768786932744,15.16588731,3209.5,3208.6,12.77931544]
[1768786933351,18.28163742,3209.5,3208.6,12.77931544]
[1768786933798,12.0501372,3209.4,3208.6,12.77931544]
[1768786933947,6.23150022,3209.5,3208.2,3.11700778]
[1768786933948,12.0501372,3209.0,3208.2,12.27531544]
[1768786934356,12.0501372,3208.8,3208.1,0.504]
[1768786934767,13.87841746,3208.8,3208.1,0.504]
[1768786935268,13.87841746,3208.8,3207.9,12.27531544]
[1768786935469,13.87841746,3208.8,3207.9,12.77931544]
[1768786935997,13.87841746,3208.8,3208.0,12.27531544]
[1768786936452,13.87841746,3208.8,3208.0,15.39250191]
[1768786936453,16.99488527,3208.8,3208.0,15.39250191]
[1768786937077,20.11135308,3208.8,3208.1,0.002]
[1768786937494,14.06127251,3208.7,3208.1,0.002]
[1768786938508,3.11662407,3208.6,3208.1,0.002]
[1768786940011,17.17784011,3208.7,3208.1,0.002]
[1768786940666,2.01113531,3208.7,3208.1,0.002]
[1768786940989,0.507,3208.8,3208.1,0.002]
[1768786941468,0.507,3208.8,3208.1,12.27731544]
[1768786941671,3.62351417,3208.8,3208.1,12.27731544]
[1768786942167,15.67365137,3208.8,3208.1,12.27731544]
[1768786942595,3.62351417,3208.8,3208.1,12.27731544]
[1768786943080,3.62351417,3208.8,3208.2,11.76004387]
[1768786943258,4.29749044,3208.8,3208.2,11.76004387]
[1768786943461,12.98940035,3209.1,3208.3,0.03116915]
[1768786943657,0.507,3209.0,3208.4,11.76004387]
[1768786944558,13.49640035,3209.0,3208.2,11.76004387]
[1768786944886,3.11633269,3208.9,3208.2,14.87705122]
[1768786945251,3.11633269,3208.9,3208.3,11.76004387]
[1768786945853,17.76704268,3209.0,3208.3,11.76004387]
[1768786946057,17.76704268,3209.0,3208.1,0.002]
[1768786946058,12.98940035,3208.9,3208.1,0.002]
[1768786946761,12.98940035,3208.6,3208.1,0.002]
[1768786946959,14.91164577,3208.5,3207.8,0.002]
[1768786947190,12.98940035,3208.3,3207.8,0.002]
[1768786947389,12.98940035,3208.3,3207.6,11.76004387]
[1768786948165,12.98940035,3208.3,3207.6,14.87761673]
[1768786948586,12.98940035,3208.3,3207.6,11.76004387]
[1768786948762,3.11701265,3208.2,3207.6,11.76004387]
[1768786949580,3.11701265,3208.2,3207.9,0.002]
[1768786949787,3.11701265,3208.2,3207.6,11.76004387]
[1768786950100,1.54186458,3208.3,3207.7,11.76004387]
[1768786950298,4.658784,3208.3,3207.7,11.76004387]
[1768786951099,7.77570342,3208.3,3207.7,11.76004387]
[1768786951267,2.12731038,3208.2,3207.7,11.76004387]
[1768786951672,2.12731038,3208.2,3207.5,12.26604387]
[1768786952317,2.12731038,3208.2,3207.6,11.76004387]
[1768786952668,2.12731038,3208.2,3207.6,14.87763881]
[1768786952864,3.6248369,3208.4,3207.7,11.76004387]
[1768786952865,0.001,3208.4,3207.7,11.76004387]
[1768786953072,0.508,3208.4,3207.7,11.76004387]
[1768786953274,3.62483927,3208.4,3207.7,11.76004387]
[1768786953700,0.508,3208.4,3207.7,11.76004387]
[1768786954091,0.001,3208.4,3207.7,11.76004387]
[1768786954677,0.001,3208.4,3207.9,11.76004387]
[1768786954878,12.98940035,3208.9,3208.1,11.76004387]
[1768786955599,12.98940035,3208.9,3208.0,0.504]
[1768786956097,12.98940035,3208.9,3207.7,11.76004387]
[1768786956406,12.98940035,3208.7,3207.8,11.76004387]
[1768786956767,3.11658395,3208.7,3208.0,11.76004387]
[1768786956968,6.2331679,3208.7,3208.0,11.76004387]
[1768786957167,12.98940035,3208.6,3207.8,14.87741455]
[1768786957412,12.98940035,3208.6,3207.9,11.76004387]
[1768786957642,14.96234381,3208.6,3207.9,11.76004387]
[1768786958382,1.97294346,3208.6,3207.9,11.76004387]
[1768786958566,3.11658395,3208.7,3207.9,12.26404387]
[1768786958767,3.11635869,3208.9,3208.1,11.89388878]
[1768786959015,6.23271738,3208.9,3208.1,11.89388878]
[1768786959291,15.42877992,3209.0,3208.1,11.89388878]
[1768786959863,0.001,3209.2,3208.1,11.89388878]
[1768786960070,3.11616188,3209.1,3208.1,11.89388878]
[1768786960581,11.80553624,3209.0,3208.1,11.89388878]
[1768786960781,3.11642981,3208.8,3208.1,11.89388878]
[1768786961078,6.23285962,3208.8,3208.1,11.89388878]
[1768786961308,18.03839586,3208.8,3208.1,11.89388878]
[1768786961485,18.03839586,3208.8,3208.4,0.002]
[1768786961807,0.001,3208.6,3208.1,11.89388878]
[1768786962014,11.80653624,3208.6,3207.3,11.89388878]
[1768786962179,11.80653624,3208.6,3206.6,0.002]
[1768786962180,11.80553624,3207.9,3206.9,11.89388878]
[1768786962521,13.56929543,3207.8,3206.9,11.89388878]
[1768786962808,11.80553624,3207.8,3206.9,11.89388878]
[1768786963014,6.23499702,3207.7,3206.9,11.89388878]
[1768786963167,6.23499702,3207.7,3206.6,0.002]
[1768786963168,11.80553624,3207.6,3206.6,0.002]
[1768786963368,11.80553624,3207.4,3206.6,0.002]
[1768786963610,11.80553624,3207.4,3206.3,0.002]
[1768786963784,11.80553624,3207.2,3206.3,0.002]
[1768786965012,14.92361799,3207.1,3206.3,0.002]
[1768786965381,11.80553624,3207.1,3206.3,0.002]
[1768786966302,12.31253624,3207.1,3206.3,0.002]
[1768786966999,11.80553624,3207.0,3206.3,0.002]
[1768786967313,15.43062111,3207.1,3206.3,11.89588878]
[1768786967519,0.507,3207.1,3206.3,11.89588878]
[1768786967817,14.92355544,3207.2,3206.3,11.89588878]
[1768786968111,15.43055544,3207.2,3206.3,11.89588878]
[1768786968718,11.80553624,3207.1,3206.3,11.89588878]
[1768786969020,13.78352141,3207.1,3206.3,11.89588878]
[1768786969514,16.90163582,3207.1,3206.3,11.89588878]
[1768786969668,11.80553624,3207.0,3206.3,11.89588878]
[1768786969874,11.80553624,3207.0,3206.3,15.01473022]
[1768786970376,11.80553624,3207.0,3206.3,11.89588878]
[1768786970885,1.97798517,3207.1,3206.5,11.89588878]
[1768786971203,12.31253624,3207.2,3206.5,11.89588878]
[1768786971378,11.80553624,3207.1,3206.5,0.002]
[1768786973581,12.40841894,3206.9,3206.5,0.002]
[1768786973931,12.40841894,3206.9,3206.8,0.002]
[1768786974111,12.40841894,3206.9,3206.5,0.002]
[1768786974614,13.9610728,3206.9,3206.5,0.002]
[1768786975687,12.40841894,3206.7,3206.2,0.002]
[1768786976094,0.507,3206.8,3206.2,12.92324515]
[1768786976308,1.55265386,3206.9,3206.2,12.92324515]
[1768786976526,12.40841894,3207.2,3206.4,12.92124515]
[1768786976882,0.507,3207.3,3206.4,12.92124515]
[1768786977086,0.507,3207.6,3206.4,12.92124515]
[1768786977383,12.91541894,3207.6,3206.4,12.92124515]
[1768786977802,15.52611184,3207.5,3206.6,12.92124515]
[1768786978047,12.40841894,3207.4,3206.6,12.92124515]
[1768786978200,16.03302507,3207.6,3206.6,12.92124515]
[1768786978405,12.40841894,3207.5,3206.6,12.92124515]
[1768786979027,12.91541894,3207.8,3206.8,12.92124515]
[1768786979527,0.507,3207.8,3206.8,12.92124515]
[1768786979908,0.507,3207.8,3206.7,0.504]
[1768786979909,0.507,3207.8,3207.0,12.92124515]
[1768786980110,3.11717413,3208.1,3207.2,12.92124515]
[1768786980316,12.40841894,3208.0,3207.2,12.92124515]
[1768786981030,3.62417413,3208.1,3207.2,12.92124515]
[1768786981245,12.40841894,3208.0,3207.1,0.504]
[1768786981441,12.40841894,3207.8,3206.9,12.92124515]
[1768786981611,12.40841894,3207.6,3206.7,16.0396716]
[1768786981933,12.40841894,3207.6,3206.6,3.11854101]
[1768786981934,12.40841894,3207.6,3206.6,0.504]
[1768786982133,12.40841894,3207.4,3206.6,0.504]
[1768786982321,12.40841894,3207.4,3206.6,3.62254283]
[1768786982902,12.40841894,3207.4,3206.7,12.92124515]
[1768786983131,13.96103012,3207.4,3206.5,3.11859735]
[1768786983639,13.96103012,3207.4,3206.4,3.62274182]
[1768786983841,13.96103012,3207.4,3206.3,16.04009732]
[1768786984030,12.40841894,3207.2,3206.4,0.504]
[1768786984529,12.40841894,3207.2,3206.4,3.6227596]
[1768786986154,12.40841894,3207.2,3206.4,6.74152207]
[1768786986324,0.507,3207.3,3206.5,12.92124515]
[1768786986531,12.40841894,3207.2,3206.2,12.92324515]
[1768786986841,12.40841894,3207.2,3206.3,12.92124515]
[1768786986842,12.91541894,3207.1,3206.3,12.92124515]
[1768786987009,3.11785767,3207.4,3206.5,16.03986926]
[1768786987211,0.001,3207.5,3206.6,12.92124515]
[1768786987411,0.001,3207.5,3206.8,12.92124515]
[1768786987718,3.62412741,3208.1,3207.0,12.92124515]
[1768786987915,12.77083168,3208.0,3207.1,13.42524515]
[1768786988650,12.77083168,3208.0,3207.2,16.03922968]
[1768786988849,0.36241274,3208.0,3207.2,16.03922968]
[1768786989144,0.36241274,3208.0,3206.8,0.504]
[1768786989145,5.83831783,3207.7,3206.8,0.504]
[1768786989449,12.40841894,3207.8,3206.9,3.11825566]
[1768786989745,14.892776,3207.8,3207.0,3.11816498]
[1768786990042,14.892776,3207.8,3207.1,3.11807035]
[1768786991042,14.892776,3207.8,3207.0,16.03942413]
[1768786991448,0.36241274,3208.0,3207.0,6.23635796]
[1768786991449,15.88807595,3208.0,3207.0,6.23635796]
[1768786991754,15.88807595,3208.0,3207.1,12.92124515]
[1768786992546,12.77083168,3208.0,3207.1,12.92124515]
[1768786992955,15.88812176,3208.0,3207.2,16.03922968]
[1768786993164,15.88812176,3208.0,3207.2,12.92124515]
[1768786993757,1.63951218,3207.9,3207.2,12.92124515]
[1768786993957,14.04793112,3207.9,3207.2,12.92124515]
[1768786995024,14.04793112,3207.9,3207.3,3.11788731]
[1768786995227,14.04793112,3207.9,3207.2,16.03920429]
[1768786995732,12.40841894,3208.3,3207.3,12.92124515]
[1768786995923,0.507,3208.4,3207.3,12.92124515]
[1768786997055,0.001,3208.6,3207.5,12.92124515]
[1768786997227,0.508,3208.6,3207.7,12.92124515]
[1768786997426,3.62463801,3208.6,3207.7,12.92124515]
[1768786997840,0.508,3208.6,3207.7,12.92124515]
[1768786998032,0.001,3208.6,3207.7,12.92124515]
[1768786998258,0.001,3209.2,3207.7,12.92124515]
[1768786999063,12.40941894,3209.2,3207.8,9.35220399]
[1768786999234,12.40941894,3209.2,3207.9,12.92124515]
[1768786999568,12.40941894,3209.2,3208.1,12.92124515]
[1768786999930,12.40941894,3209.2,3208.0,0.504]
[1768786999931,12.40941894,3209.2,3207.7,3.11748107]
[1768787000136,12.40941894,3209.2,3207.8,0.504]
[1768787001339,12.40841894,3209.0,3207.8,3.62138283]
[1768787001572,12.40841894,3208.8,3207.9,12.92124515]
[1768787001771,0.507,3208.9,3207.9,12.92124515]
[1768787003559,0.001,3209.2,3208.1,12.33559606]
[1768787003761,0.001,3209.2,3208.3,12.33559606]
[1768787005552,0.001,3209.2,3208.5,12.33559606]
[1768787005755,0.001,3209.2,3208.4,15.45241441]
[1768787005969,13.45771742,3209.1,3208.4,0.504]
[1768787006947,13.45771742,3209.1,3208.1,12.33559606]
[1768787007145,13.45771742,3209.1,3208.3,0.504]
[1768787007368,13.45771742,3209.1,3208.3,3.62091389]
[1768787007789,12.74119765,3209.0,3206.8,12.33559606]
[1768787007971,14.08706939,3209.0,3207.4,3.11777737]
[1768787008392,13.58006939,3209.0,3207.6,12.33559606]
[1768787008561,12.23419765,3208.8,3207.6,12.33559606]
[1768787009293,12.23419765,3208.8,3207.7,0.504]
[1768787009495,0.507,3208.9,3207.8,3.1173839]
[1768787009496,12.23419765,3208.6,3207.8,3.1173839]
[1768787009662,1.27411977,3208.7,3207.8,12.33559606]
[1768787009858,3.11662407,3208.6,3207.8,15.45299517]
[1768787010375,3.11662407,3208.6,3207.8,12.33559606]
[1768787010774,3.11662407,3208.6,3207.8,15.45296875]
[1768787010976,3.86735121,3208.6,3207.8,15.45296875]
[1768787011495,3.86735121,3208.6,3207.8,12.33559606]
[1768787011884,3.86735121,3208.6,3207.8,15.4529565]
[1768787012293,6.98397528,3208.6,3207.8,12.33559606]
[1768787012677,12.23419765,3208.5,3207.8,0.504]
[1768787012895,14.15601494,3208.4,3207.5,12.33559606]
[1768787013104,12.23419765,3208.4,3207.8,0.504]
[1768787014113,12.23419765,3208.4,3207.8,3.62139535]
[1768787014318,12.23419765,3208.4,3207.8,0.504]
[1768787015002,15.35103042,3208.4,3207.8,0.504]
[1768787015208,17.27286941,3208.4,3207.8,0.504]
[1768787015702,14.15603664,3208.4,3207.8,0.504]
[1768787015880,14.15603664,3208.4,3207.8,3.62138659]
[1768787016381,16.10156348,3208.6,3207.8,3.62138659]
[1768787016583,3.86736583,3208.6,3207.9,12.33559606]
[1768787018670,3.86736583,3208.6,3207.9,15.45288757]
[1768787018865,3.86736583,3208.6,3207.9,12.33559606]
[1768787019102,3.86736583,3208.6,3207.9,15.45288553]
[1768787019282,3.86736583,3208.6,3207.9,12.33559606]
[1768787019604,3.86736583,3208.6,3207.9,15.45289708]
[1768787019976,0.75072714,3208.6,3207.9,15.45289708]
[1768787020303,3.86737772,3208.6,3207.9,12.33559606]
[1768787020506,19.3025503,3208.6,3207.9,12.33559606]
[1768787020814,16.18589972,3208.6,3207.9,12.33559606]
[1768787020985,16.18589972,3208.6,3207.8,0.504]
[1768787021176,19.3025503,3208.6,3207.8,0.504]
[1768787021375,12.318522,3208.5,3207.8,0.504]
[1768787021573,14.24877703,3208.5,3207.8,0.504]
[1768787022100,14.24877703,3208.5,3207.8,13.24959917]
[1768787022304,12.318522,3208.5,3207.8,13.24959917]
[1768787022604,3.86737772,3208.6,3207.9,3.11730087]
[1768787022821,12.318522,3208.5,3207.8,3.11732746]
[1768787023130,0.001,3208.3,3208.1,0.002]
[1768787023294,0.001,3208.3,3207.7,12.74559917]
[1768787023492,0.001,3208.3,3207.8,0.002]
[1768787023705,0.001,3208.3,3207.8,0.506]
[1768787024204,0.001,3208.3,3207.8,3.62339788]
[1768787024422,0.001,3208.3,3207.8,0.506]
[1768787024831,12.319522,3208.3,3207.8,0.506]
[1768787025622,12.319522,3208.3,3207.8,3.62338736]
[1768787025838,0.001,3208.3,3207.8,3.62338736]
[1768787026008,0.001,3208.3,3207.8,16.36898653]
[1768787026207,0.001,3208.3,3207.9,12.74559917]
[1768787027627,0.001,3208.3,3207.8,0.506]
[1768787027831,12.319522,3208.3,3207.8,0.506]
[1768787028032,12.319522,3208.3,3207.8,0.002]
[1768787028235,13.5504742,3208.2,3207.8,0.506]
[1768787029293,12.318522,3208.2,3207.8,0.506]
[1768787029994,3.11796805,3208.3,3207.8,0.506]
[1768787029995,0.001,3208.3,3207.8,0.506]
[1768787031710,0.001,3208.3,3207.8,0.002]
[1768787032097,0.001,3208.3,3207.8,12.74759917]
[1768787033812,12.56076079,3208.3,3207.8,0.002]
[1768787034010,0.001,3208.3,3207.8,12.22097413]
[1768787034211,0.001,3208.3,3207.9,12.21897413]
[1768787035434,0.001,3208.3,3208.1,0.002]
[1768787036421,0.001,3208.3,3207.8,0.002]
[1768787036745,12.56076079,3208.3,3207.8,0.002]
[1768787036946,12.56076079,3208.3,3207.8,3.11939209]
[1768787037153,12.56076079,3208.3,3207.8,3.11939623]
[1768787037447,0.001,3208.3,3207.9,3.1172863]
[1768787037613,0.001,3208.3,3207.9,15.33626043]
[1768787038168,0.001,3208.3,3207.9,18.45356458]
[1768787038469,12.56076079,3208.9,3208.0,12.21897413]
[1768787038621,15.67709957,3208.9,3208.2,12.21897413]
[1768787040228,15.67709957,3208.9,3208.2,15.33594308]
[1768787040448,15.67709957,3208.9,3208.2,12.21897413]
[1768787040652,0.001,3208.9,3208.3,12.21897413]
[1768787042237,0.001,3208.9,3208.4,15.33579248]
[1768787042453,0.001,3208.9,3208.5,0.504]
[1768787042946,0.001,3208.9,3208.4,3.11681835]
[1768787043166,0.001,3208.9,3208.5,0.504]
[1768787043371,0.001,3208.9,3208.5,12.72297413]
[1768787044371,0.001,3208.9,3208.7,12.21897413]
[1768787044651,13.05176079,3209.6,3208.8,12.21897413]
[1768787044821,12.55976079,3209.5,3208.8,12.21897413]
[1768787045449,12.55976079,3209.5,3208.6,12.21897413]
[1768787045647,14.48808116,3209.4,3208.6,12.21897413]
[1768787046347,15.67570507,3209.3,3208.6,12.21897413]
[1768787047163,0.001,3209.2,3208.6,15.33557806]
[1768787047901,0.001,3209.2,3208.1,3.11908187]
[1768787047902,12.55976079,3209.1,3208.4,3.11676591]
[1768787048106,12.55976079,3209.1,3208.4,15.33574004]
[1768787048303,12.55976079,3209.1,3208.5,15.33566513]
[1768787049400,12.55976079,3209.1,3208.5,12.21897413]
[1768787049710,15.67592563,3209.1,3208.5,12.21897413]
[1768787050207,15.67592563,3209.1,3208.5,0.504]
[1768787050869,15.67592563,3209.1,3208.5,12.72297413]
[1768787051275,3.11707625,3209.2,3208.6,12.21897413]
[1768787051473,0.001,3209.2,3208.6,12.21897413]
[1768787052180,3.11706059,3209.2,3208.6,12.21897413]
[1768787052617,0.001,3209.2,3208.6,3.11660382]
[1768787052819,0.001,3209.2,3208.7,12.21897413]
[1768787053191,12.55976079,3210.2,3208.8,12.21897413]
[1768787053396,12.55976079,3210.2,3209.0,12.21897413]
[1768787053708,12.55976079,3209.9,3209.0,12.72297413]
[1768787053919,12.55976079,3209.6,3208.9,0.504]
[1768787054098,12.55976079,3209.6,3208.9,12.72297413]
[1768787054423,14.39875161,3209.6,3208.9,12.72297413]
[1768787054726,1.83899082,3209.6,3208.9,12.72297413]
[1768787054906,3.11575011,3209.5,3208.9,12.72297413]
[1768787055108,3.11575011,3209.5,3208.9,12.21897413]
[1768787055309,3.11575011,3209.5,3208.9,12.72297413]
[1768787055509,17.51442952,3209.6,3208.9,12.72297413]
[1768787055944,17.51442952,3209.6,3209.0,12.21897413]
[1768787056658,4.95466743,3209.6,3209.0,12.21897413]
[1768787056813,8.94573244,3209.7,3209.0,12.21897413]
[1768787057003,3.11558499,3209.7,3209.0,12.21897413]
[1768787057711,12.55976079,3209.4,3208.7,12.21897413]
[1768787057939,12.55976079,3209.4,3208.8,0.504]
[1768787058137,13.15242037,3209.4,3208.8,0.504]
[1768787058750,13.15242037,3209.4,3208.9,0.002]
[1768787058917,15.67570507,3209.3,3208.9,0.002]
[1768787059309,3.70852797,3209.4,3208.9,0.002]
[1768787059531,0.59265958,3209.4,3208.9,12.22097413]
[1768787060316,3.62256764,3209.7,3208.9,12.22097413]
[1768787060317,3.1156722,3209.6,3208.9,12.22097413]
[1768787061352,18.79110519,3209.6,3208.9,12.22097413]
[1768787061717,15.67543299,3209.6,3208.9,12.22097413]
[1768787062653,15.67543299,3209.6,3209.0,12.19116882]
[1768787063027,3.1156722,3209.6,3209.0,12.69516882]
[1768787063226,12.62229449,3209.5,3208.9,0.002]
[1768787063421,12.98702981,3209.0,3207.9,12.19116882]
[1768787063626,12.98702981,3209.0,3208.0,12.69516882]
[1768787063947,13.49402981,3209.0,3208.1,12.19316882]
[1768787064555,13.49402981,3209.0,3208.1,0.002]
[1768787064858,13.49402981,3209.0,3208.1,12.19316882]
[1768787065060,12.98702981,3209.4,3208.3,12.19116882]
[1768787065244,3.11584719,3209.4,3208.6,12.19116882]
[1768787065448,12.98702981,3209.3,3208.6,12.19116882]
[1768787066161,3.11584719,3209.4,3208.6,12.19116882]
[1768787067130,16.102877,3209.4,3208.6,12.19116882]
[1768787067455,1.6102877,3209.3,3208.6,12.19116882]
[1768787067845,14.59731751,3209.3,3208.4,15.811894]
[1768787068043,14.59731751,3209.3,3208.4,12.69516882]
[1768787068836,14.59731751,3209.3,3208.5,0.504]
[1768787069231,3.11604138,3209.2,3208.5,12.69516882]
[1768787069559,1.77133589,3209.1,3208.5,3.62071026]
[1768787069737,1.77133589,3209.1,3208.6,12.19116882]
[1768787069937,4.72626078,3209.3,3208.6,12.19116882]
[1768787070142,12.98702981,3209.2,3208.5,0.504]
[1768787070533,12.98702981,3209.2,3208.7,0.002]
[1768787071326,3.11608572,3209.2,3208.7,12.19316882]
[1768787071959,3.11608572,3209.2,3208.7,0.002]
[1768787072257,2.08303544,3209.1,3208.7,0.002]
[1768787073725,5.19924849,3209.1,3208.7,0.002]
[1768787074329,5.19924849,3209.1,3208.4,12.19316882]
[1768787074528,2.08303544,3209.1,3208.5,12.19116882]
[1768787074730,0.001,3209.3,3208.5,12.19116882]
[1768787074731,3.11697175,3209.3,3208.5,12.19116882]
[1768787074962,0.001,3209.3,3208.6,12.69516882]
[1768787075326,3.11696736,3209.3,3208.6,12.69516882]
[1768787075535,16.10399717,3209.3,3208.6,12.69516882]
[1768787075965,0.001,3209.3,3208.7,12.19116882]
[1768787077163,12.98702981,3210.6,3208.7,12.19116882]
[1768787077365,12.98702981,3210.4,3208.7,12.19116882]
[1768787077593,3.11468261,3210.6,3208.7,12.19116882]
[1768787077758,16.60963209,3210.7,3208.7,12.19116882]
[1768787077956,16.60963209,3210.7,3208.9,12.73651904]
[1768787077957,19.72423437,3210.7,3208.9,12.73651904]
[1768787078159,12.11337316,3210.6,3209.1,12.73651904]
[1768787079952,15.22810532,3210.6,3209.3,12.73651904]
[1768787080277,12.11337316,3210.5,3209.2,12.73651904]
[1768787080449,12.11337316,3210.5,3209.4,0.504]
[1768787080773,12.11337316,3210.3,3209.4,13.24051904]
[1768787081351,12.11337316,3210.3,3209.4,0.504]
[1768787082077,12.11337316,3210.1,3208.8,15.85293584]
[1768787082240,12.11337316,3209.9,3208.9,15.85282991]
[1768787082436,12.11337316,3209.9,3208.9,12.73651904]
[1768787082953,12.11337316,3209.9,3208.9,12.73851904]
[1768787083357,12.11337316,3209.9,3208.9,15.85484282]
[1768787083568,1.26203732,3209.8,3208.9,15.85484282]
[1768787083763,1.26203732,3209.8,3209.1,12.73651904]
[1768787083965,0.507,3210.0,3209.1,15.85260688]
[1768787083966,3.11526479,3210.0,3209.1,15.85260688]
[1768787084285,6.23052958,3210.0,3209.1,15.85260688]
[1768787084765,12.11337316,3209.9,3208.9,0.002]
[1768787084953,12.11337316,3209.8,3208.9,0.002]
[1768787085354,6.23052958,3210.0,3208.9,12.73851904]
[1768787085355,12.11337316,3209.9,3208.9,12.73851904]
[1768787085582,13.94776343,3209.8,3208.9,12.73851904]
[1768787085983,18.3444851,3209.7,3208.9,12.73851904]
[1768787086175,12.11337316,3209.6,3208.9,13.24251904]
[1768787087062,12.11337316,3209.6,3208.9,12.73851904]
[1768787087267,12.11337316,3209.6,3208.9,0.506]
[1768787087463,13.94782167,3209.5,3208.9,0.002]
[1768787088161,13.94782167,3209.5,3207.9,3.84]
[1768787088162,11.6584259,3209.0,3207.8,12.73851904]
[1768787088357,15.57923595,3209.4,3207.8,12.73851904]
[1768787088358,12.11337316,3208.8,3207.8,12.73851904]
[1768787088653,12.62037316,3208.8,3207.8,12.73851904]
[1768787088855,13.88241048,3208.8,3207.8,12.73851904]
[1768787090295,3.11652694,3208.7,3207.8,12.73851904]
[1768787090595,12.11337316,3208.6,3207.8,12.73851904]
[1768787090780,12.11337316,3208.6,3207.8,15.85591661]
[1768787090976,3.11652694,3208.7,3207.8,15.85591661]
[1768787093567,3.11652694,3208.7,3207.8,6.2367989]
[1768787093876,3.11652694,3208.7,3207.9,12.93115839]
[1768787094074,3.11652694,3208.7,3208.0,13.43515839]
[1768787094262,6.23305388,3208.7,3208.0,13.43515839]
[1768787094462,3.11652694,3208.7,3208.0,13.43515839]
[1768787094990,3.11652694,3208.7,3208.1,0.002]
[1768787095300,0.001,3208.3,3208.1,0.002]
[1768787095518,0.001,3208.3,3208.1,12.93315839]
[1768787095698,3.11645703,3208.8,3208.1,12.93315839]
[1768787095699,3.11645703,3208.8,3208.2,12.93115839]
[1768787096801,6.23291406,3208.8,3208.2,12.93115839]
[1768787097197,18.63964539,3208.8,3208.2,12.93115839]
[1768787097405,20.55430993,3208.8,3208.1,0.002]
[1768787097602,12.40673133,3208.7,3208.1,12.93315839]
[1768787097805,8.1475786,3208.8,3208.1,12.93315839]
[1768787098184,17.4378529,3208.8,3208.1,12.93315839]
[1768787098802,8.1475786,3208.8,3208.1,12.93315839]
[1768787098984,12.40673133,3208.7,3208.1,12.93315839]
[1768787099572,3.11645703,3208.8,3208.1,12.93315839]
[1768787100400,6.23291406,3208.8,3208.1,12.93315839]
[1768787100707,12.40673133,3208.7,3208.1,0.002]
[1768787100910,12.40673133,3208.5,3208.1,0.002]
[1768787101274,14.27072928,3208.5,3208.1,0.002]
[1768787101994,14.27072928,3208.5,3207.8,0.002]
[1768787102899,12.40673133,3208.3,3207.8,0.002]
[1768787103204,12.40673133,3208.3,3207.5,12.93115839]
[1768787103205,12.40673133,3208.3,3207.5,13.43615839]
[1768787103375,12.40673133,3208.3,3207.3,0.002]
[1768787103708,12.40673133,3208.1,3207.4,0.505]
[1768787104904,18.64114529,3208.0,3207.4,0.505]
[1768787105481,15.52393831,3208.0,3207.4,13.43615839]
[1768787105684,18.64114529,3208.0,3207.4,13.43615839]
[1768787106009,12.40673133,3207.9,3207.3,0.002]
[1768787106305,1.86411453,3207.8,3207.3,0.002]
[1768787106507,14.27084586,3207.8,3207.3,0.002]
[1768787107181,14.27084586,3207.8,3207.7,0.002]
[1768787108087,12.40773133,3208.3,3207.7,12.93315839]
[1768787108416,3.11795671,3208.3,3207.7,12.93315839]
[1768787108914,3.11795671,3208.3,3207.7,0.002]
[1768787108915,18.64164475,3208.3,3207.7,0.002]
[1768787109134,12.40673133,3208.2,3207.7,0.002]
[1768787109292,12.40673133,3208.2,3207.3,0.002]
[1768787109487,1.86416447,3208.1,3207.3,12.93315839]
[1768787109697,0.507,3208.2,3207.4,3.1177364]
[1768787110019,0.507,3208.2,3207.6,3.11757038]
[1768787110219,0.507,3208.2,3207.7,12.93115839]
[1768787110518,12.91373133,3208.2,3207.4,12.93115839]
[1768787111118,3.62405325,3208.2,3207.4,16.04892948]
[1768787111506,3.62405325,3208.2,3207.5,12.93115839]
[1768787111886,0.507,3208.2,3207.5,12.93115839]
[1768787112508,0.001,3208.3,3207.5,12.93115839]
[1768787113218,0.001,3208.3,3207.7,12.93115839]
[1768787114315,12.40673133,3208.2,3207.5,0.505]
[1768787114519,12.40673133,3208.2,3207.3,12.93315839]
[1768787114710,12.40673133,3208.2,3207.4,0.505]
[1768787115017,12.40673133,3208.2,3207.4,3.62277409]
[1768787115222,15.5237747,3208.2,3207.4,16.55393248]
[1768787115517,17.4191147,3208.2,3207.4,16.55393806]
[1768787116018,14.30207133,3208.2,3207.5,12.93115839]
[1768787116224,3.42975534,3208.3,3207.5,12.93115839]
[1768787116427,3.11797822,3208.3,3207.5,12.93115839]
[1768787116791,0.001,3208.3,3207.5,12.93115839]
[1768787117193,3.11791617,3208.3,3207.5,12.93115839]
[1768787117820,0.001,3208.3,3207.7,12.93115839]
[1768787118995,12.40673133,3209.3,3207.8,13.43615839]
[1768787119297,12.40673133,3209.1,3207.8,13.43615839]
[1768787119823,12.40673133,3209.1,3207.9,3.11730415]
[1768787119824,0.001,3208.0,3207.9,3.11730415]
[1768787120024,12.25873133,3208.8,3208.1,12.93115839]
[1768787120198,1.84913967,3208.7,3208.1,12.93115839]
[1768787121223,3.11633269,3208.9,3208.1,12.93115839]
[1768787122002,15.52306402,3208.9,3208.1,12.93115839]
[1768787122329,12.40673133,3208.8,3208.1,12.93115839]
[1768787123337,12.40673133,3208.8,3208.0,12.51036736]
[1768787123918,12.4333532,3209.3,3208.2,12.00536736]
[1768787124141,2.06192004,3209.2,3208.4,12.00536736]
[1768787124331,14.49527324,3209.2,3208.4,12.00536736]
[1768787124531,14.49527324,3209.2,3208.1,3.11704185]
[1768787124532,14.49527324,3209.2,3208.0,12.00536736]
[1768787124730,14.49527324,3209.2,3207.7,0.002]
[1768787126042,12.4333532,3209.0,3207.7,0.002]
[1768787126242,12.4333532,3208.8,3207.7,0.002]
[1768787126439,12.4333532,3208.6,3207.7,0.002]
[1768787127844,2.48979071,3208.9,3207.7,0.002]
[1768787127845,12.9403532,3208.5,3207.7,12.00736736]
[1768787128254,12.4333532,3208.3,3207.7,0.002]
[1768787129158,3.11681835,3208.4,3207.7,12.00736736]
[1768787130235,16.05709412,3208.5,3207.7,3.11947889]
[1768787130436,12.9403532,3208.5,3207.8,12.00536736]
[1768787130648,14.54606261,3208.5,3207.8,12.00536736]
[1768787130954,5.22943379,3208.5,3207.8,12.00536736]
[1768787131256,12.4333532,3208.4,3207.7,0.002]
[1768787131856,12.4333532,3208.4,3208.0,0.002]
[1768787132058,6.74051184,3208.5,3208.0,0.002]
[1768787132260,0.507,3208.5,3208.0,12.00736736]